fUST/lending_fUST_20250615
["ID","MTS","AMOUNT","RATE_DAILY","PERIOD"]
[365943408,1749993061401,-85191.140825,0.00025,2]
[365943418,1749993061480,-460.0,0.00019178,2]
[365943420,1749993061490,-460.0,0.00019178,2]
[365943422,1749993061500,-460.96160819,0.00019178,2]
[365943424,1749993061510,-460.0,0.00019178,2]
[365943426,1749993061519,-460.0,0.00019178,2]
[365943428,1749993061529,-440.0,0.00019452,2]
[365943430,1749993061538,-222.27280839,0.00019452,2]
[365943432,1749993061548,-119.38966625,0.00023013,2]
[365943489,1749993062081,-46.13625671,0.00023013,2]
[365944261,1749993070307,460.00000006,0.00025028,60]
[365945582,1749993307340,4066.53879202,0.00025033,60]
[365945584,1749993376429,159.0,0.00017096,3]
[365945594,1749993586332,213.3145634,0.00017767,2]
[365945595,1749993629890,200.03128008,0.00017962,2]
[365945596,1749993663977,200.03128008,0.00017962,2]
[365945599,1749993719114,252.84112623,0.00018,2]
[365945600,1749993741548,29286.43770709,0.00018,6]
[365945601,1749993741574,3.56229291,0.00018,6]
[365945602,1749993744985,11770.6814271,0.00017517,2]
[365945603,1749993759801,496.97930451,0.00017963,2]
[365945604,1749993761917,201.86757376,0.0001752,2]
[365945605,1749993781934,19207.3,0.000179,2]
[365945608,1749993872783,973.69775582,0.00017962,2]
[365945609,1749993878022,321.2999611,0.00017198,2]
[365945611,1749993912837,350.0,0.00024,120]
[365945612,1749993972640,5000.0,0.00018,2]
[365945614,1749994006498,489.153115,0.00013699,2]
[365945615,1749994031106,-350.0,0.00018,2]
[365945616,1749994031128,-300.0,0.00018058,2]
[365945617,1749994031151,-300.0,0.00018058,2]
[365945618,1749994031174,-500.0,0.00018059,2]
[365945619,1749994031196,-496.1958031,0.00018059,2]
[365945620,1749994031220,-500.0,0.00018059,2]
[365945621,1749994031246,-500.0,0.00018059,2]
[365945622,1749994031267,-500.0,0.00018059,2]
[365945623,1749994031295,-500.0,0.00018059,2]
[365945624,1749994031317,-200.39152211,0.00018059,2]
[365945625,1749994031340,-500.0,0.00018059,2]
[365945626,1749994031364,-348.61990161,0.00018059,2]
[365945627,1749994035141,-151.38009839,0.00018059,2]
[365945628,1749994035168,-28.28701875,0.00018059,2]
[365945629,1749994048122,-471.71298125,0.00018059,2]
[365945630,1749994048147,-479.34067343,0.00018059,2]
[365945631,1749994048171,-500.0,0.00018059,2]
[365945632,1749994048196,-500.0,0.00018059,2]
[365945633,1749994048222,-500.0,0.00018059,2]
[365945634,1749994048249,-282.87053216,0.00018059,2]
[365945635,1749994048273,-500.0,0.00018059,2]
[365945636,1749994048297,-500.0,0.00018059,2]
[365945637,1749994048322,-500.0,0.00018059,2]
[365945638,1749994048346,-500.0,0.00018059,2]
[365945639,1749994048369,-500.0,0.00018059,2]
[365945640,1749994048394,-500.0,0.00018059,2]
[365945641,1749994048420,-500.0,0.00018059,2]
[365945642,1749994048444,-500.0,0.00018059,2]
[365945643,1749994048468,-500.0,0.00018059,2]
[365945644,1749994048492,-500.0,0.00018059,2]
[365945645,1749994048515,-500.0,0.00018059,2]
[365945646,1749994048539,-500.0,0.00018059,2]
[365945647,1749994048561,-500.0,0.00018059,2]
[365945648,1749994048582,-500.0,0.00018059,2]
[365945649,1749994048604,-500.0,0.00018059,2]
[365945650,1749994048624,-160.76062696,0.00018059,2]
[365945651,1749994048649,-500.0,0.00018059,2]
[365945652,1749994048674,-500.0,0.00018059,2]
[365945653,1749994048696,-500.0,0.00018059,2]
[365945654,1749994048721,-164.37118594,0.00018059,2]
[365945655,1749994048746,-500.0,0.00018059,2]
[365945656,1749994048772,-500.0,0.00018059,2]
[365945657,1749994048797,-500.0,0.00018059,2]
[365945658,1749994048822,-500.0,0.00018059,2]
[365945659,1749994048844,-300.0,0.00018059,2]
[365945660,1749994048866,-300.0,0.00018059,2]
[365945661,1749994048889,-300.0,0.00018059,2]
[365945662,1749994048914,-1200.0,0.00018059,2]
[365945663,1749994048941,-500.0,0.00018059,2]
[365945664,1749994048968,-483.04620409,0.00018059,2]
[365945665,1749994048995,-500.0,0.00018059,2]
[365945666,1749994049023,-500.0,0.00018059,2]
[365945667,1749994049050,-500.0,0.00018059,2]
[365945668,1749994049078,-500.0,0.00018059,2]
[365945669,1749994049103,-500.0,0.00018059,2]
[365945670,1749994049130,-500.0,0.00018059,2]
[365945671,1749994049158,-500.0,0.00018059,2]
[365945672,1749994049184,-288.13234287,0.00018059,2]
[365945673,1749994049206,-1981.43176534,0.0001806,2]
[365945674,1749994066166,631.947548,0.00017861,2]
[365945675,1749994091933,2582.41179061,0.00018,2]
[365945677,1749994122234,182.41496772,0.0002,120]
[365945678,1749994122748,150.999999,0.0002502,120]
[365945680,1749994148123,-159.99773053,0.00018059,2]
[365945681,1749994148149,-300.0,0.00018062,2]
[365945682,1749994148175,-24900.0,0.00018063,2]
[365945683,1749994148200,-166.18695862,0.00018069,2]
[365945684,1749994148226,-1000.0,0.00018169,2]
[365945685,1749994148253,-1000.0,0.00018176,2]
[365945686,1749994148280,-199.13021375,0.00018501,2]
[365945687,1749994148307,-193.619693,0.00018506,2]
[365945688,1749994148333,-166.1869586,0.00018574,2]
[365945689,1749994148358,-299.61374076,0.00018597,2]
[365945690,1749994148385,-851.98553636,0.000188,2]
[365945691,1749994148412,-1700.94726459,0.00018833,2]
[365945692,1749994148437,-13125.63516717,0.00018833,2]
[365945693,1749994148948,153.37185513,0.00017959,2]
[365945694,1749994153105,-12568.71167459,0.00018833,2]
[365945695,1749994165179,-19298.02291281,0.00018833,2]
[365945696,1749994165202,-1527.09887319,0.000189,2]
[365945697,1749994165224,-166.1869586,0.00019078,2]
[365945698,1749994165247,-172.94675447,0.00019089,2]
[365945699,1749994165269,-160.0,0.00019142,2]
[365945700,1749994165295,-16000.0,0.00019166,2]
[365945701,1749994165317,-5698.34664912,0.00019166,2]
[365945702,1749994165340,-41.08120244,0.00019167,2]
[365945712,1749994224928,154.66013963,6.9e-07,2]
[365945759,1749994232504,-490.61058159,0.00019078,2]
[365945761,1749994232514,-958.91879756,0.00019167,2]
[365945763,1749994232523,-409.19,0.00019168,3]
[365945765,1749994232533,-204.59,0.00019168,3]
[365945767,1749994232542,-613.81,0.00019168,3]
[365945769,1749994232551,-300.0,0.00019172,2]
[365945771,1749994232561,-300.0,0.00019172,2]
[365945773,1749994232570,-300.0,0.00019172,2]
[365945774,1749994232580,-1200.0,0.00019172,2]
[365945776,1749994232590,-500.654928,0.00019173,2]
[365945779,1749994232600,-500.0,0.00019173,2]
[365945781,1749994232609,-512.18749651,0.00019173,2]
[365945783,1749994232619,-500.0,0.00019173,2]
[365945785,1749994232629,-518.64941684,0.00019173,2]
[365945786,1749994232638,-210.01221511,0.00019173,2]
[365945789,1749994232646,-500.0,0.00019173,2]
[365945791,1749994232656,-500.0,0.00019173,2]
[365945793,1749994232665,-500.0,0.00019173,2]
[365945794,1749994232673,-500.0,0.00019173,2]
[365945796,1749994232683,-243.94881655,0.00019173,2]
[365945799,1749994232692,-224.76017556,0.00019173,2]
[365945801,1749994232701,-500.0,0.00019173,2]
[365945803,1749994232711,-500.0,0.00019173,2]
[365945805,1749994232719,-500.0,0.00019173,2]
[365945807,1749994232729,-160.0,0.00019177,2]
[365945809,1749994232740,-1000.0,0.00019177,2]
[365945811,1749994232749,-1000.0,0.00019177,2]
[365945813,1749994232759,-17.92686339,0.00019177,2]
[365945815,1749994232772,-982.07313661,0.00019177,2]
[365945817,1749994232781,-876.88377202,0.00019177,2]
[365945819,1749994232791,-460.0,0.00019178,2]
[365945821,1749994232801,-15.53621589,0.00019178,2]
[365946391,1749994238374,-444.46378411,0.00019178,2]
[365946394,1749994238384,-403.28172485,0.00019178,2]
[365946397,1749994238394,-403.67696952,0.00019178,2]
[365946400,1749994238404,-430.0,0.00019178,2]
[365946403,1749994238414,-413.7434534,0.00019178,2]
[365946405,1749994238423,-440.38884369,0.00019178,2]
[365946408,1749994238434,-440.0,0.00019178,2]
[365946411,1749994238444,-460.0,0.00019178,2]
[365946414,1749994238454,-460.0,0.00019178,2]
[365946417,1749994238463,-332.003201,0.00019178,2]
[365946420,1749994238474,-460.0,0.00019178,2]
[365946422,1749994238483,-460.0,0.00019178,2]
[365946424,1749994238493,-191.91520592,0.00019178,2]
[365946426,1749994238502,-460.0,0.00019178,2]
[365946428,1749994238512,-419.23010314,0.00019178,2]
[365946429,1749994238521,-460.0,0.00019178,2]
[365946431,1749994238532,-460.0,0.00019178,2]
[365946432,1749994238542,-460.0,0.00019178,2]
[365946434,1749994238552,-181.94052388,0.00019178,2]
[365946436,1749994238563,-460.0,0.00019178,2]
[365946438,1749994238572,-460.0,0.00019178,2]
[365946440,1749994238583,-460.0,0.00019178,2]
[365946442,1749994238593,-460.0,0.00019178,2]
[365946444,1749994238603,-399.12965384,0.00019178,2]
[365946447,1749994238613,-460.0,0.00019178,2]
[365946474,1749994238757,-435.28217313,0.00019178,2]
[365946476,1749994238766,-455.05216204,0.00019178,2]
[365946478,1749994238776,-460.0,0.00019178,2]
[365946480,1749994238786,-460.0,0.00019178,2]
[365946482,1749994238795,-437.91168777,0.00019178,2]
[365946484,1749994238806,-430.0,0.00019178,2]
[365946486,1749994238815,-460.0,0.00019178,2]
[365946488,1749994238825,-460.0,0.00019178,2]
[365946490,1749994238834,-396.06911421,0.00019178,2]
[365946492,1749994238843,-440.0,0.00019178,2]
[365946494,1749994238852,-460.0,0.00019178,2]
[365946495,1749994238861,-494.42079598,0.00019178,2]
[365946497,1749994238870,-460.0,0.00019178,2]
[365946499,1749994238880,-382.19491668,0.00019178,2]
[365946501,1749994238889,-460.0,0.00019178,2]
[365946503,1749994238898,-401.10544024,0.00019178,2]
[365946505,1749994238908,-460.0,0.00019178,2]
[365946507,1749994238917,-460.0,0.00019178,2]
[365946509,1749994238927,-460.0,0.00019178,2]
[365946511,1749994238936,-460.0,0.00019178,2]
[365946514,1749994238945,-440.0,0.00019178,2]
[365946515,1749994238955,-460.0,0.00019178,2]
[365946518,1749994238964,-444.5987658,0.00019178,2]
[365946520,1749994238973,-421.33517862,0.00019178,2]
[365946522,1749994238983,-478.84257984,0.00019178,2]
[365946523,1749994238992,-460.0,0.00019178,2]
[365946526,1749994239002,-460.0,0.00019178,2]
[365946527,1749994239011,-460.0,0.00019178,2]
[365946529,1749994239021,-460.0,0.00019178,2]
[365946531,1749994239030,-460.0,0.00019178,2]
[365946533,1749994239040,-262.49924613,0.00019178,2]
[365946535,1749994239050,-472.84290823,0.00019178,2]
[365946538,1749994239059,-460.0,0.00019178,2]
[365946539,1749994239068,-460.0,0.00019178,2]
[365946542,1749994239078,-460.0,0.00019178,2]
[365946544,1749994239088,-460.0,0.00019178,2]
[365946546,1749994239098,-460.0,0.00019178,2]
[365946548,1749994239107,-454.17462625,0.00019178,2]
[365946550,1749994239117,-460.0,0.00019178,2]
[365946552,1749994239127,-460.0,0.00019178,2]
[365946554,1749994239136,-410.0,0.00019178,2]
[365946556,1749994239146,-430.88540725,0.00019178,2]
[365946558,1749994239155,-460.0,0.00019178,2]
[365946559,1749994239165,-376.62038587,0.00019178,2]
[365946561,1749994239174,-430.0,0.00019178,2]
[365946563,1749994239183,-400.09493162,0.00019178,2]
[365946565,1749994239193,-460.0,0.00019178,2]
[365946567,1749994239202,-460.0,0.00019178,2]
[365946569,1749994239211,-274.94956815,0.00019178,2]
[365946571,1749994239220,-304.49044796,0.00019178,2]
[365946573,1749994239230,-460.0,0.00019178,2]
[365946575,1749994239239,-460.0,0.00019178,2]
[365946577,1749994239249,-440.0,0.00019178,2]
[365946579,1749994239258,-460.0,0.00019178,2]
[365946581,1749994239267,-460.0,0.00019178,2]
[365946583,1749994239277,-460.0,0.00019178,2]
[365946585,1749994239286,-460.0,0.00019178,2]
[365946587,1749994239295,-460.0,0.00019178,2]
[365946589,1749994239306,-440.0,0.00019178,2]
[365946591,1749994239318,-460.0,0.00019178,2]
[365946593,1749994239329,-582.69855384,0.00019178,2]
[365946595,1749994239339,-440.0,0.00019178,2]
[365946597,1749994239348,-430.0,0.00019178,2]
[365946599,1749994239359,-486.46699829,0.00019178,2]
[365946601,1749994239368,-455.09452096,0.00019178,2]
[365946603,1749994239377,-296.61647403,0.00019178,2]
[365946605,1749994239387,-460.0,0.00019178,2]
[365946607,1749994239398,-460.0,0.00019178,2]
[365946609,1749994239408,-390.0,0.00019178,2]
[365946611,1749994239418,-460.0,0.00019178,2]
[365946613,1749994239427,-460.0,0.00019178,2]
[365946615,1749994239437,-460.0,0.00019178,2]
[365946617,1749994239447,-440.0,0.00019178,2]
[365946619,1749994239457,-228.92986368,0.00019178,2]
[365946621,1749994239466,-460.0,0.00019178,2]
[365946623,1749994239475,-460.0,0.00019178,2]
[365946625,1749994239485,-460.0,0.00019178,2]
[365946627,1749994239494,-441.55454247,0.00019178,2]
[365946629,1749994239503,-500.0,0.00019178,2]
[365946631,1749994239513,-460.0,0.00019178,2]
[365946633,1749994239522,-460.0,0.00019178,2]
[365946635,1749994239532,-548.25653715,0.00019178,2]
[365946637,1749994239542,-460.0,0.00019178,2]
[365946639,1749994239552,-460.0,0.00019178,2]
[365946641,1749994239562,-460.0,0.00019178,2]
[365946643,1749994239571,-460.0,0.00019178,2]
[365946645,1749994239581,-460.0,0.00019178,2]
[365946647,1749994239590,-460.0,0.00019178,2]
[365946649,1749994239600,-460.0,0.00019178,2]
[365946651,1749994239610,-460.0,0.00019178,2]
[365946653,1749994239619,-460.0,0.00019178,2]
[365946655,1749994239629,-162.04968254,0.00019178,2]
[365946657,1749994239638,-460.0,0.00019178,2]
[365946659,1749994239648,-460.0,0.00019178,2]
[365946661,1749994239657,-460.0,0.00019178,2]
[365946663,1749994239667,-430.0,0.00019178,2]
[365946665,1749994239676,-358.25964466,0.00019178,2]
[365946667,1749994239685,-460.0,0.00019178,2]
[365946669,1749994239694,-460.0,0.00019178,2]
[365946671,1749994239703,-440.0,0.00019178,2]
[365946673,1749994239713,-460.0,0.00019178,2]
[365946675,1749994239722,-301.59274398,0.00019178,2]
[365946677,1749994239732,-460.0,0.00019178,2]
[365946679,1749994239742,-460.0,0.00019178,2]
[365946681,1749994239751,-250.48194179,0.00019178,2]
[365946683,1749994239760,-460.0,0.00019178,2]
[365946685,1749994239769,-460.0,0.00019178,2]
[365946687,1749994239780,-460.0,0.00019178,2]
[365946689,1749994239789,-460.0,0.00019178,2]
[365946691,1749994239799,-430.0,0.00019178,2]
[365946693,1749994239809,-460.0,0.00019178,2]
[365946695,1749994239818,-500.0,0.00019178,2]
[365946697,1749994239828,-358.46152586,0.00019178,2]
[365946699,1749994239837,-460.0,0.00019178,2]
[365946701,1749994239846,-460.0,0.00019178,2]
[365946703,1749994239856,-460.0,0.00019178,2]
[365946705,1749994239865,-460.0,0.00019178,2]
[365946708,1749994239875,-428.89608308,0.00019178,2]
[365946710,1749994239884,-347.9317554,0.00019178,2]
[365946712,1749994239894,-460.0,0.00019178,2]
[365946714,1749994239903,-460.0,0.00019178,2]
[365946716,1749994239913,-460.0,0.00019178,2]
[365946718,1749994239922,-460.0,0.00019178,2]
[365946720,1749994239931,-460.0,0.00019178,2]
[365946722,1749994239941,-460.0,0.00019178,2]
[365946724,1749994239951,-460.0,0.00019178,2]
[365946726,1749994239961,-460.0,0.00019178,2]
[365946728,1749994239971,-460.0,0.00019178,2]
[365946730,1749994239981,-460.0,0.00019178,2]
[365946732,1749994239991,-547.602809,0.00019178,2]
[365946733,1749994240000,-430.0,0.00019178,2]
[365946734,1749994240010,-425.0,0.00019178,2]
[365946735,1749994240019,-454.21706211,0.00019178,2]
[365946736,1749994240029,-460.0,0.00019178,2]
[365946737,1749994240039,-460.0,0.00019178,2]
[365946738,1749994240048,-180.81256741,0.00019178,2]
[365946739,1749994240059,-460.0,0.00019178,2]
[365946740,1749994240068,-460.0,0.00019178,2]
[365946741,1749994240077,-460.0,0.00019178,2]
[365946742,1749994240087,-460.0,0.00019178,2]
[365946743,1749994240097,-460.0,0.00019178,2]
[365946744,1749994240107,-460.0,0.00019178,2]
[365946745,1749994240117,-331.50666071,0.00019178,2]
[365946746,1749994240126,-441.56818863,0.00019178,2]
[365946747,1749994240136,-460.0,0.00019178,2]
[365946748,1749994240145,-436.70426987,0.00019178,2]
[365946749,1749994240155,-460.0,0.00019178,2]
[365946750,1749994240165,-270.0,0.00019178,2]
[365946751,1749994240175,-460.0,0.00019178,2]
[365946752,1749994240184,-405.76846984,0.00019178,2]
[365946753,1749994240194,-460.0,0.00019178,2]
[365946754,1749994240203,-460.0,0.00019178,2]
[365946755,1749994240213,-460.0,0.00019178,2]
[365946756,1749994240223,-460.0,0.00019178,2]
[365946757,1749994240232,-460.0,0.00019178,2]
[365946758,1749994240242,-233.26133562,0.00019178,2]
[365946759,1749994240251,-460.0,0.00019178,2]
[365946760,1749994240261,-460.0,0.00019178,2]
[365946761,1749994240270,-546.20092609,0.00019178,2]
[365946762,1749994240279,-384.86192728,0.00019178,2]
[365946763,1749994240289,-460.0,0.00019178,2]
[365946764,1749994240299,-460.0,0.00019178,2]
[365946765,1749994240310,-430.51546268,0.00019178,2]
[365946766,1749994240321,-460.0,0.00019178,2]
[365946767,1749994240330,-222.81001161,0.00019178,2]
[365946768,1749994240340,-430.0,0.00019178,2]
[365946769,1749994240351,-437.95963149,0.00019178,2]
[365946770,1749994240360,-165.50616548,0.00019178,2]
[365946771,1749994240370,-430.0,0.00019178,2]
[365946772,1749994240379,-460.0,0.00019178,2]
[365946773,1749994240390,-460.0,0.00019178,2]
[365946774,1749994240400,-460.0,0.00019178,2]
[365946775,1749994240410,-460.0,0.00019178,2]
[365946776,1749994240419,-305.58150225,0.00019178,2]
[365946777,1749994240428,-460.0,0.00019178,2]
[365946778,1749994240438,-460.0,0.00019178,2]
[365946779,1749994240447,-460.0,0.00019178,2]
[365946780,1749994240457,-514.04277809,0.00019178,2]
[365946781,1749994240467,-460.0,0.00019178,2]
[365946782,1749994240477,-460.0,0.00019178,2]
[365946783,1749994240486,-440.0,0.00019178,2]
[365946784,1749994240496,-460.0,0.00019178,2]
[365946785,1749994240506,-460.0,0.00019178,2]
[365946786,1749994240515,-460.0,0.00019178,2]
[365946787,1749994240524,-465.3112175,0.00019178,2]
[365946788,1749994240534,-402.66886999,0.00019178,2]
[365946789,1749994240543,-460.0,0.00019178,2]
[365946790,1749994240553,-460.0,0.00019178,2]
[365946791,1749994240565,-448.03000323,0.00019178,2]
[365946792,1749994240575,-622.91172607,0.00019178,2]
[365946793,1749994240584,-460.0,0.00019178,2]
[365946794,1749994240593,-452.38808726,0.00019178,2]
[365946795,1749994240603,-460.0,0.00019178,2]
[365946796,1749994240613,-460.0,0.00019178,2]
[365946797,1749994240623,-460.0,0.00019178,2]
[365946798,1749994240633,-460.0,0.00019178,2]
[365946799,1749994240642,-460.0,0.00019178,2]
[365946800,1749994240652,-460.0,0.00019178,2]
[365946801,1749994240661,-460.0,0.00019178,2]
[365946802,1749994240670,-466.96312873,0.00019178,2]
[365946803,1749994240680,-440.14149796,0.00019178,2]
[365946804,1749994240688,-460.0,0.00019178,2]
[365946805,1749994240698,-440.0,0.00019178,2]
[365946806,1749994240708,-460.0,0.00019178,2]
[365946807,1749994240717,-460.0,0.00019178,2]
[365946808,1749994240727,-460.0,0.00019178,2]
[365946809,1749994240736,-460.0,0.00019178,2]
[365946810,1749994240745,-278.73771314,0.00019178,2]
[365946811,1749994240755,-460.0,0.00019178,2]
[365946813,1749994240765,-460.0,0.00019178,2]
[365946815,1749994240774,-500.0,0.00019178,2]
[365946817,1749994240784,-500.0,0.00019178,2]
[365946819,1749994240795,-460.0,0.00019178,2]
[365946821,1749994240803,-460.0,0.00019178,2]
[365946823,1749994240814,-460.0,0.00019178,2]
[365946825,1749994240823,-460.0,0.00019178,2]
[365946827,1749994240833,-550.96662569,0.00019178,2]
[365946828,1749994240842,-460.0,0.00019178,2]
[365946829,1749994240851,-460.0,0.00019178,2]
[365946830,1749994240861,-460.0,0.00019178,2]
[365946831,1749994240871,-460.0,0.00019178,2]
[365946832,1749994240880,-460.0,0.00019178,2]
[365946833,1749994240889,-460.0,0.00019178,2]
[365946834,1749994240899,-322.92389835,0.00019178,2]
[365946835,1749994240910,-460.0,0.00019178,2]
[365946836,1749994240920,-460.0,0.00019178,2]
[365946837,1749994240930,-460.0,0.00019178,2]
[365946838,1749994240940,-460.0,0.00019178,2]
[365946839,1749994240949,-460.0,0.00019178,2]
[365946840,1749994240959,-402.36348876,0.00019178,2]
[365946841,1749994240968,-460.0,0.00019178,2]
[365946842,1749994240977,-460.0,0.00019178,2]
[365946843,1749994240986,-410.0,0.00019178,2]
[365946844,1749994240996,-460.0,0.00019178,2]
[365946845,1749994241006,-460.0,0.00019178,2]
[365946846,1749994241015,-460.0,0.00019178,2]
[365946847,1749994241024,-460.0,0.00019178,2]
[365946848,1749994241034,-460.0,0.00019178,2]
[365946849,1749994241043,-460.0,0.00019178,2]
[365946850,1749994241053,-230.83379737,0.00019178,2]
[365946851,1749994241063,-742.48,0.00019178,2]
[365946852,1749994241072,-460.0,0.00019178,2]
[365946853,1749994241082,-370.85700147,0.00019178,2]
[365946854,1749994241091,-460.0,0.00019178,2]
[365946855,1749994241101,-500.0,0.00019178,2]
[365946856,1749994241111,-500.0,0.00019178,2]
[365946857,1749994241120,-500.0,0.00019178,2]
[365946858,1749994241130,-500.0,0.00019178,2]
[365946859,1749994241139,-460.0,0.00019178,2]
[365946860,1749994241148,-500.0,0.00019178,2]
[365946861,1749994241157,-434.43049342,0.00019178,2]
[365946862,1749994241167,-460.0,0.00019178,2]
[365946863,1749994241176,-440.87311069,0.00019178,2]
[365946864,1749994241185,-460.0,0.00019178,2]
[365946865,1749994241195,-460.0,0.00019178,2]
[365946866,1749994241204,-460.0,0.00019178,2]
[365946867,1749994241214,-460.0,0.00019178,2]
[365946868,1749994241224,-460.0,0.00019178,2]
[365946869,1749994241233,-460.0,0.00019178,2]
[365946870,1749994241243,-189.31241294,0.00019178,2]
[365946871,1749994241252,-460.0,0.00019178,2]
[365946872,1749994241262,-460.0,0.00019178,2]
[365946873,1749994241271,-460.0,0.00019178,2]
[365946874,1749994241281,-526.61,0.00019178,2]
[365946875,1749994241291,-460.0,0.00019178,2]
[365946876,1749994241301,-460.0,0.00019178,2]
[365946877,1749994241314,-404.22975578,0.00019178,2]
[365946878,1749994241323,-482.85335105,0.00019178,2]
[365946879,1749994241332,-460.0,0.00019178,2]
[365946880,1749994241342,-460.0,0.00019178,2]
[365946881,1749994241353,-481.32024323,0.00019178,2]
[365946882,1749994241364,-460.0,0.00019178,2]
[365946883,1749994241374,-500.0,0.00019178,2]
[365946884,1749994241385,-500.0,0.00019178,2]
[365946885,1749994241398,-500.0,0.00019178,2]
[365946886,1749994241408,-596.64404023,0.00019178,2]
[365946887,1749994241419,-500.0,0.00019178,2]
[365946888,1749994241429,-460.0,0.00019178,2]
[365946889,1749994241439,-500.0,0.00019178,2]
[365946890,1749994241450,-500.0,0.00019178,2]
[365946891,1749994241460,-500.0,0.00019178,2]
[365946892,1749994241470,-500.0,0.00019178,2]
[365946893,1749994241480,-500.0,0.00019178,2]
[365946894,1749994241489,-500.0,0.00019178,2]
[365946895,1749994241498,-500.0,0.00019178,2]
[365946896,1749994241508,-500.0,0.00019178,2]
[365946897,1749994241517,-500.0,0.00019178,2]
[365946898,1749994241527,-500.0,0.00019178,2]
[365946899,1749994241536,-500.0,0.00019178,2]
[365946900,1749994241545,-500.0,0.00019178,2]
[365946901,1749994241555,-500.0,0.00019178,2]
[365946902,1749994241566,-169.02008187,0.00019178,2]
[365946903,1749994241575,-500.0,0.00019178,2]
[365946904,1749994241585,-500.0,0.00019178,2]
[365946905,1749994241595,-500.0,0.00019178,2]
[365946906,1749994241604,-500.0,0.00019178,2]
[365946907,1749994241613,-500.0,0.00019178,2]
[365946908,1749994241623,-500.0,0.00019178,2]
[365946909,1749994241632,-500.0,0.00019178,2]
[365946910,1749994241641,-500.0,0.00019178,2]
[365946911,1749994241650,-500.0,0.00019178,2]
[365946912,1749994241660,-500.0,0.00019178,2]
[365946913,1749994241669,-500.0,0.00019178,2]
[365946914,1749994241788,-500.0,0.00019178,2]
[365946915,1749994241798,-500.0,0.00019178,2]
[365946916,1749994241807,-500.0,0.00019178,2]
[365946917,1749994241818,-460.0,0.00019178,2]
[365946918,1749994241828,-460.0,0.00019178,2]
[365946919,1749994241837,-944.87,0.00019178,2]
[365946920,1749994241846,-460.0,0.00019178,2]
[365946921,1749994241856,-420.0,0.00019178,2]
[365946922,1749994241866,-364.85902584,0.00019178,2]
[365946923,1749994241875,-500.0,0.00019178,2]
[365946924,1749994241885,-500.0,0.00019178,2]
[365946925,1749994241894,-500.0,0.00019178,2]
[365946926,1749994241905,-500.0,0.00019178,2]
[365946927,1749994241914,-500.0,0.00019178,2]
[365946928,1749994241924,-500.0,0.00019178,2]
[365946929,1749994241933,-500.0,0.00019178,2]
[365946930,1749994241943,-500.0,0.00019178,2]
[365946931,1749994241952,-500.0,0.00019178,2]
[365946932,1749994241961,-460.0,0.00019178,2]
[365946933,1749994241971,-460.0,0.00019178,2]
[365946934,1749994241981,-407.3406,0.00019178,2]
[365946935,1749994241990,-460.0,0.00019178,2]
[365946936,1749994242001,-1055.99,0.00019178,2]
[365946937,1749994242010,-460.0,0.00019178,2]
[365946938,1749994242019,-420.0,0.00019178,2]